Cogmind - Beta 10.1 @@@ ROGUE MODE // 2020.09.27 @ 20:13:45 Player: 277 Result: Destroyed by D-53 Grenadier with Mini Grenade Launcher Performance ------------- Evolutions (0) 0 Regions Visited (2) 400 Robots Destroyed (38) 190 Value Destroyed (349) 349 Prototype IDs (0) 0 Alien Tech Used (0) 0 Bonus (0) 0 TOTAL SCORE: 939 Bonus ------- None Cogmind --------- Core Integrity 0/250 Matter 159/300 Energy 36/100 System Corruption 5% Temperature Cool (0) Movement Core (150) Ox2 Location -10/Mines Parts ------- > --- POWER (1) -------- (None) > --- PROPULSION (2) --- (None) > --- UTILITY (2) ------ Medium Storage Unit > --- WEAPON (2) ------- (None) > --- INVENTORY (8) ---- Structural Scanner Grenade Launcher Peak State ------------ > --- POWER ------------ Light Nuclear Core > --- PROPULSION ------- Improved Aluminum Leg Improved Aluminum Leg > --- UTILITY ---------- Medium Storage Unit Improved Terrain Scanner > --- WEAPON ----------- EM Shotgun Grenade Launcher > --- INVENTORY -------- Ion Engine Improved Aluminum Leg Improved Aluminum Leg Structural Scanner Signal Interpreter Shield Generator Particle Gun Mining Laser [Rating: 14] Favorites ----------- Power Ion Engine Engine Ion Engine Power Core Light Nuclear Core Propulsion Improved Aluminum Leg Leg Improved Aluminum Leg Wheel Compact Wheel Utility Improved Terrain Scanner Device Improved Terrain Scanner Storage Medium Storage Unit Weapon EM Shotgun Energy Gun EM Shotgun Launcher Grenade Launcher Special Weapon Mining Laser Build | -11 -10 -10 ------- Run | Scr Mat Min Slots Evolved . | . . . Power . | . . . Propulsion . | . . . Utility . | . . . Weapon . | . . . Parts Attached 26 | 9 11 6 Power 3 | 1 2 . Engine 2 | 1 1 . Core 1 | . 1 . Reactor . | . . . Propulsion 9 | 4 3 2 Treads . | . . . Leg 4 | . 2 2 Wheel 5 | 4 1 . Hover . | . . . Flight . | . . . Utility 4 | 2 1 1 Device 2 | 1 . 1 Storage 2 | 1 1 . Processor . | . . . Hackware . | . . . Protection . | . . . Artifact . | . . . Weapon 10 | 2 5 3 Energy Gun 8 | 2 4 2 Energy Cannon . | . . . Ballistic Gun . | . . . Ballistic Cannon . | . . . Launcher 1 | . 1 . Special Weapon 1 | . . 1 Impact Weapon . | . . . Slashing Weapon . | . . . Piercing Weapon . | . . . Special Melee Weapon . | . . . Unidentified Prototypes . | . . . Parts Lost 14 | . 2 12 Power 1 | . . 1 Propulsion 4 | . . 4 Utility 2 | . . 2 Weapon 7 | . 2 5 Highest Loss Streak 8 | . 1 8 Average Slot Usage (%) 98 | . 99 92 Engine 9 | . 10 . Core 4 | . 3 12 Leg 26 | . 26 26 Wheel 1 | . 1 . Device 13 | . 14 12 Storage 14 | . 14 14 Energy Gun 23 | . 24 17 Launcher 3 | . 3 7 Naked Turns . | . . . Heaviest Build 20 | 14 20 20 Greatest Support 32 | 32 26 26 Greatest Overweight (x) 1 | . 1 1 Average Overweight (x) . | . . . Largest Inventory Capacity 8 | 6 8 8 Average Capacity 7 | 4 7 8 Most Carried 8 | 5 8 8 Average Carried 6 | 2 7 5 Final Capacity 8 | 6 8 8 Final Carried 8 | 5 8 2 Class Distribution -------------------- 97% | Mutant Dominant Class ---------------- Mutant | -10/Materials Mutant | -10/Mines Resources | -11 -10 -10 ----------- Run | Scr Mat Min Matter Collected 413 | 290 110 13 Remotely . | . . . Salvage Created 634 | 194 415 25 Parts 39 | 11 28 . Haulers Intercepted 2 | . 2 . Recyclers Shooed . | . . . Parts Field Recycled . | . . . Retrieved Matter . | . . . Parts Self-Destructed . | . . . Prevented . | . . . Kills | -11 -10 -10 ------- Run | Scr Mat Min Combat Hostiles Destroyed 22 | . 6 16 Guns 8 | . 5 3 AOE 13 | . . 13 Classes Destroyed 9 | 3 4 2 Worker 5 | 2 3 . Tunneler 5 | 5 . . Hauler 2 | . 2 . Recycler 1 | 1 . . Watcher 3 | . 3 . Swarmer 3 | . 3 . Grunt 3 | . 3 . Demolisher 1 | . . 1 Assembled 15 | . . 15 Best Kill Streak 14 | 7 5 14 Combat Bots Only 14 | . 5 14 Max Kills in Single Turn 6 | 1 1 6 Gunslinging . | . . . Exploded 6 | . . 6 Melee . | . . . Uniques/NPCs Destroyed . | . . . Combat | -11 -10 -10 -------- Run | Scr Mat Min Damage Taken 1308 | . 475 833 Core 261 | . 127 134 Absorbed by Shields 68 | . . 68 Core Remaining (%) 100 | 100 . . Volleys Fired 79 | 15 48 16 Largest 2 | 2 2 2 Hottest 105 | 100 90 105 Shots Fired 127 | 30 77 20 Gun 110 | 30 67 13 Cannon . | . . . Launcher 17 | . 10 7 Special . | . . . Kinetic . | . . . Thermal 40 | 30 7 3 Explosive 17 | . 10 7 Electromagnetic 70 | . 60 10 Robot Hit Streak 10 | 10 10 6 Robot Miss Streak 3 | 1 3 2 Penetration Max . | . . . Secondary Targets 1 | . 1 . Max Gunslinging Chain 1 | . 1 . Shots Hit Robots 82 | 21 53 8 Core Hits 74 | 9 23 42 Critical Hits . | . . . Critical Kills . | . . . Critical Parts Destroyed . | . . . Melee Attacks . | . . . Impact . | . . . Slashing . | . . . Piercing . | . . . Sneak Attacks . | . . . Combat Hostiles . | . . . Follow-up Attacks . | . . . Damage Inflicted 1924 | 273 741 910 Guns 1039 | 273 697 69 Cannons . | . . . Explosions 881 | . 44 837 Melee . | . . . Ramming 4 | . . 4 Kinetic . | . . . Thermal 355 | 273 66 16 Explosive 881 | . 44 837 Electromagnetic 684 | . 631 53 Impact . | . . . Slashing . | . . . Piercing . | . . . Highest Corruption 5 | . . 5 Average Corruption 4 | . . 4 Corruption Purged . | . . . Effects 2 | . . 2 Energy Discharges 1 | . . 1 Misfires 1 | . . 1 Overload Shots . | . . . Overflow Damage 16 | . . 16 Projectiles . | . . . Explosions 16 | . . 16 Melee . | . . . Knockbacks . | . . . Impact . | . . . Kinetic . | . . . Secondary . | . . . Self-Inflicted Damage 61 | . 31 30 Shots 2 | . 1 1 Rammed 3 | . . 3 Targets Rammed 4 | . . 4 Kicked 1 | . . 1 Crushed . | . . . Highest Temperature 334 | 195 334 102 Average Temperature 75 | 62 88 40 Received Heat Transfer 156 | . 156 . Effects 2 | . 2 . Energy Bleed 1 | . 1 . Short Circuit 1 | . 1 . Siege Activations . | . . . Robots Corrupted 1 | . 1 . Combat Hostiles 1 | . 1 . Parts Fried 4 | . 4 . Impact Corruptions . | . . . Robots Melted . | . . . Combat Hostiles . | . . . Parts Melted 1 | 1 . . Heat Transferred 1001 | 814 150 37 Parts Sabotaged . | . . . Parts Stolen . | . . . Parts Stripped . | . . . Power Chain Reactions 1 | . 1 . Missiles Intercepted . | . . . Alert | -11 -10 -10 ------- Run | Scr Mat Min Peak Influence 249 | 40 249 96 Initial 96 | . 26 96 Average 94 | 20 115 72 Maximum Alert Level 1 | . 1 . Low Security (%) 95 | 100 93 100 Level 1 4 | . 6 . Level 2 . | . . . Level 3 . | . . . Level 4 . | . . . Level 5 . | . . . High Security . | . . . Max Security . | . . . Squads Dispatched . | . . . Investigation . | . . . Extermination . | . . . Reinforcement . | . . . Assault . | . . . Garrison . | . . . Intercept . | . . . Construction Impeded . | . . . Haulers Reinforced . | . . . Stealth | -11 -10 -10 --------- Run | Scr Mat Min Distress Signals . | . . . Communications Jammed . | . . . Distress Signals . | . . . Times Spotted 34 | . 15 19 Peak Tracking Total 17 | . 7 17 Tactical Retreats 1 | . 1 . Traps | -11 -10 -10 ------- Run | Scr Mat Min Traps Triggered . | . . . Indirectly . | . . . Trap Hack Attempts . | . . . Triggered . | . . . Disarmed . | . . . Reprogrammed . | . . . Reused . | . . . Traps Extracted . | . . . Installed . | . . . Triggered . | . . . Machines | -11 -10 -10 ---------- Run | Scr Mat Min Machines Disabled 4 | . 4 . Max in Single Turn 2 | . 2 . Machines Sabotaged . | . . . Garrisons Compromised . | . . . Overloaded Fab Kills . | . . . Fab Network Shutdowns . | . . . Hacking | -11 -10 -10 --------- Run | Scr Mat Min Machines Accessed 6 | . 6 . Terminals 4 | . 4 . Fabricators . | . . . Repair Stations . | . . . Recycling Units 2 | . 2 . Scanalyzers . | . . . Garrison Access . | . . . Total Hacks 15 | . 15 . Successful 9 | . 9 . Failed 6 | . 6 . Catastrophic . | . . . Database Lockouts . | . . . Manual 11 | . 11 . Terminals 13 | . 13 . Fabricators . | . . . Repair Stations . | . . . Recycling Units 2 | . 2 . Scanalyzers . | . . . Garrison Access . | . . . Terminal Hacks 3 | . 3 . Robot Analysis 1 | . 1 . Locate Traps 1 | . 1 . Zone Layout 1 | . 1 . Fabricator Hacks . | . . . Repair Station Hacks . | . . . Recycling Unit Hacks . | . . . Scanalyzer . | . . . Garrison Access Hacks . | . . . Unauthorized Hacks 6 | . 6 . Terminals 4 | . 4 . Track 2 | . 2 . Botnet 1 | . 1 . Operators 1 | . 1 . Fabricators . | . . . Repair Stations . | . . . Recycling Units 2 | . 2 . Mask 2 | . 2 . Scanalyzers . | . . . Garrison Access . | . . . Data Cores Recovered . | . . . Used . | . . . Hacking Detections 4 | . 4 . Full Trace Events . | . . . Feedback Events . | . . . Feedback Blocked . | . . . Robot Schematics Acquired . | . . . Robots Built . | . . . Matter . | . . . Time . | . . . Total Robot Build Rating . | . . . Part Schematics Acquired . | . . . Parts Built . | . . . Matter . | . . . Time . | . . . Total Part Build Rating . | . . . Parts Repaired . | . . . Time . | . . . Parts Recycled . | . . . Recycled Matter . | . . . Retrieved Matter . | . . . Retrieved Components . | . . . Parts Scanalyzed . | . . . Part Schematics Acquired . | . . . Parts Damaged . | . . . Bothacking | -11 -10 -10 ------------ Run | Scr Mat Min Used RIF Installer . | . . . Robots Hacked . | . . . Non-combat . | . . . Combat . | . . . Robot Hacks Applied . | . . . Relay Couplers Released . | . . . Robots Rewired . | . . . Allies Hacked . | . . . Hacks Repelled . | . . . Allies | -11 -10 -10 -------- Run | Scr Mat Min Total Allies . | . . . Largest Group . | . . . Highest-Rated Group . | . . . Highest-Rated Ally . | . . . Total Orders . | . . . Ally Attacks . | . . . Total Damage . | . . . Kills . | . . . Allies Corrupted . | . . . Allies Melted . | . . . Intel | -11 -10 -10 ------- Run | Scr Mat Min Robot Analysis Total 1 | . 1 . Derelict Logs Recovered . | . . . Drone Launches . | . . . Drone Recoveries . | . . . Exploration | -11 -10 -10 ------------- Run | Scr Mat Min Turns Passed 1033 | 174 744 115 Spaces Moved 627 | 117 456 54 Core 3 | 3 . . Treads . | . . . Legs 466 | . 412 54 Wheels 158 | 114 44 . Hover . | . . . Flight . | . . . Fastest Speed 50 | 50 80 120 Average Speed 112 | 94 116 121 Slowest Speed 150 | 100 150 150 Overloaded Moves . | . . . Propulsion Burnouts . | . . . Robots Hopped . | . . . Cave-ins Triggered . | . . . Exploration Rate (%) 33 | 5 83 12 Regions Visited 2 Branch Regions 1 Pre-discovered Areas . | . . . Known Exits Taken . | . . . Unknown Exits Taken 2 | 1 1 . Scrap Searched 1 | . . 1 Spaces Dug 17 | . 17 . Terrain Destroyed 153 | . 112 41 Melee . | . . . Projectile . | . . . AOE 153 | . 112 41 Terrain Rammed . | . . . Walls Destroyed . | . . . Machines Disabled . | . . . Actions | -11 -10 -10 --------- Run | Scr Mat Min Total 824 | 145 596 83 Wait 61 | 2 56 3 Move 625 | 116 455 54 Hop . | . . . Pick Up 15 | 3 12 . Fast Attach 11 | 7 4 . Attach 7 | . 1 6 Detach . | . . . Swap 8 | 2 6 . Drop 14 | . 14 . Fire 79 | 15 48 16 Melee . | . . . Ram 1 | . . 1 Kick 3 | . . 3 Crush . | . . . Escape Stasis . | . . . Rewire . | . . . Trap . | . . . Miscellaneous . | . . . Route ------- -11/Scrapyard -10/Materials (discovered 4 exits: [*Mat x3] / [*Min]) -10/Mines History --------- Turn | Location | Event 16 | -11/Scrapyard | Discovered new exit (range 15) 175 | -11/Scrapyard | Entered Materials 246 | -10/Materials | Discovered new exit (range 9) 282 | -10/Materials | Discovered new exit (range 6) 403 | -10/Materials | Discovered new exit (range 15) 505 | -10/Materials | Build established: Mutant 647 | -10/Materials | Core integrity fell below 50% 692 | -10/Materials | Discovered new exit (range 5) 919 | -10/Materials | Entered Mines 944 | -10/Mines | Assembled infested the area 949 | -10/Mines | Assisted by a Guerilla fighting off Assembled 991 | -10/Mines | Destroyed 14 combat bots 1006 | -10/Mines | Lost 4 parts (1n1u2w) 1013 | -10/Mines | Core integrity fell below 20% 1034 | -10/Mines | Destroyed by D-53 Grenadier with Mini Grenade Launcher Last Messages --------------- 01022_ Imp. Aluminum Leg destroyed. 01022_ U-05 Engineer lays Concrete. 01026_ Lgt. Nuclear Core destroyed. 01026_ U-05 Engineer lays Concrete. 01027_ The unstable cave ceiling collapses. 01027_ U-05 Engineer lays Concrete. 01027_ Kicked D-53 Grenadier out of the way. 01028_ Slammed into D-53 Grenadier. 01028_ Imp. Aluminum Leg permanently disabled. 01028_ Destabilizing: Short circuit. 01029_ U-05 Engineer lays Concrete. 01030_ Slammed into D-53 Grenadier. 01030_ Imp. Aluminum Leg destroyed. 01030_ U-05 Engineer lays Concrete. 01032_ Broken Imp. Aluminum Leg destroyed. 01032_ Shield Generator destroyed. 01033_ U-05 Engineer lays Concrete. 01033_ Slammed into D-53 Grenadier. 01033_ Destabilizing: Core damaged (-5). 01034_ Mining Laser destroyed. Map ----- +----------------------------------------------------+ | ?????????????????????????????????????????????????? | | ?????????????????????????????????????????????????? | | ?????????????????????????????????????????????????? | | ?????????????????????????????????????????????????? | | ?????????????????????????????????????????????????? | | ????????????????????#????????????????????????????? | | ?????????????????????????????????????????????????? | | ?????????????????????????????????????????????????? | | ????????????#????????????????????????????????????? | | ????????????????#????????????????????????????????? | | ???????????????????????????????????????#? ???????? | | ?????????????????????????????????????????????????? | | ?????????????????????????????#???????????????????? | | ??????????????????????????????????#?##?#?????????? | | ??????????????????????#?????????? # # ##????????? | | ??????????????????????????????### ????????? | | ???????????#??????????????##### ??????? | | ?????????#####????????????# # % ?????? | | ????????## ########????? ?????? | | ???###### ## ###??## ?????? | | ##?# # ?????? | | ## ##### ??????? | | # ####### u #???????? ???????????? | | ????????#### #????????????????????? | | ???????????## d ##???????????????????? | | ????????????## @ #???????????????????? | | ?????????????## #?????????#?????????? | | ??????????????## ###?? ????#??????????? | | ???????????????### ##?? ???????????????? | | ?????????????????## #??????????????????? | | ?????????????#????### ## #????????#?????????? | | ????????????????????##?# ##?#????????????????? | | ???????????????????????## *##???????????????????? | | ????????????????????????#####????????????????????? | | ???????????? ????????????????????????????#???????? | | ?????????????????????????????????????????????????? | | ?????????????????????????????????????????????????? | | ??????????????????????????????????????#??????????? | | ?????????????????????????????????????????????????? | | ?????????????????????????????????????????????????? | | ?????????????????????????????????????????????????? | | ?????????????????????????????????????????????????? | | ?????????????????????????????????????????????????? | | ?????????????????????????????????????????????????? | | ?????????????????????????????????????????????????? | | ?????????????????????????????????????????????????? | | ?????????????????????????????????????????????????? | | ?????????????????????????????????????????????????? | | ?????????????????????????????????????????????????? | | ?????????????????????????????????????????????????? | +----------------------------------------------------+ Best States ------------- Heat Dissipation 25 Energy Generation 14 Energy Capacity 250 Matter Stores 300 Matter Capacity 300 Sight Range 16 Terrain Scan Range 16 Terrain Scan Density 10 Evasion (%) 44 Item Schematics ----------------- None Robot Schematics ------------------ None Fabricated ------------ Nothing Alien Tech Used ----------------- None Achievements -------------- Exterminator Challenges ------------ None Game ------ Seed TrackerOmegaField Manual? 0 Play Time 00:18:21 Cumulative 222.5 hours Start 2020.09.27 @ 19:57:47 End 2020.09.27 @ 20:13:45 Sessions 1 Manual Loads 0 Difficulty Rogue Special Mode None Game No. 159 Rogue 159 Adventurer 0 Explorer 0 Win Type - Total 1 Types 1/0/0/0/0/0/0/0/0 Lore% 59 Gallery% 70 Achievement% 51 Wizard Run 0 Options --------- ASCII 0 Keyboard 0 Movement Mouse Keybinds 0 Fullscreen 1 Font 18/SmallcapsGlow Map View 76x50 Tactical HUD 1 Map Filters NONE Filters NONE Steam 1 RUN: a8ff101d-5e34-403f-aac3-34cb015b1023